2CCN - Level 2 Cost Centre Name,,9CCN - Level 9 Cost Centre Name,9CCC - Level 9 Cost Centre Code,9AN - Level 9 Account Name,9AC - Level 9 Account Code,Date posted,Date of transaction,Merchant Name,Merchant City,Merchant State,Merchant Zip Code,Originating Account Name,Originating Account Number,MCC/SIC Code,MCC Description,Original Amount,Currency,Conversion Rate,Billed Amount,Debit Credit,Reference Number,Statement Cycle,Account Name
Gloucester City Council,23UE,Museum of Gloucester,MU002,Advertising & Publicity,3404,04/04/2019,03/04/2019,FACEBK *4993DKEKW2,fb.me/ads,IRL,UNKNOWN,REDACTED,556*********2362,7311,ADVERTISING SERVICES,28.52,Pound Sterling (826),1,28.52,Debit,5.52047E+22,02/05/2019,GLOUCESTER CC
Gloucester City Council,23UE,Museum of Gloucester,MU002,General Supplies/Materials,3025,08/04/2019,05/04/2019,TIMPSON LTD,GLOUCESTER,,GL11XH,REDACTED,556*********2362,7251,"SHOE REPAIR SHOPS, SHOE SHINE PARLORS & HAT CLEANING SHOPS",13.2,Pound Sterling (826),1,13.2,Debit,8.54815E+22,02/05/2019,GLOUCESTER CC
Gloucester City Council,23UE,Museum of Gloucester Catering,MU004,Hospitality & Refreshments,3104,08/04/2019,06/04/2019,ASDA SUPERSTORE,GLOUCESTER,GBR,GL1 1DS,REDACTED,556*********2362,5411,"GROCERY STORES, SUPERMARKETS",6.88,Pound Sterling (826),1,6.88,Debit,1.53778E+22,02/05/2019,GLOUCESTER CC
Gloucester City Council,23UE,Museum of Gloucester,MU002,General Supplies/Materials,3025,11/04/2019,10/04/2019,WH SMITH,GLOUCESTER,GBR,GL1 1NZ,REDACTED,556*********2362,5994,NEWS DEALERS AND NEWSSTANDS,5.98,Pound Sterling (826),1,5.98,Debit,4.53778E+22,02/05/2019,GLOUCESTER CC
Gloucester City Council,23UE,Museum of Gloucester,MU002,General Supplies/Materials,3025,11/04/2019,10/04/2019,THE WORKS,GLOUCESTER,,GL1 2NG,REDACTED,556*********2362,5310,DISCOUNT STORES,6,Pound Sterling (826),1,6,Debit,8.54815E+22,02/05/2019,GLOUCESTER CC
Gloucester City Council,23UE,Museum of Gloucester Catering,MU004,Hospitality & Refreshments,3104,15/04/2019,13/04/2019,ASDA SUPERSTORE,GLOUCESTER,GBR,GL1 1DS,REDACTED,556*********2362,5411,"GROCERY STORES, SUPERMARKETS",2.96,Pound Sterling (826),1,2.96,Debit,1.53778E+22,02/05/2019,GLOUCESTER CC
Gloucester City Council,23UE,Museum of Gloucester,MU002,General Supplies/Materials,3025,15/04/2019,13/04/2019,WILKO RETAIL LIMIT,GLOUCESTER 14,,GL11SL,REDACTED,556*********2362,5722,HOUSEHOLD APPLIANCE STORES,3.5,Pound Sterling (826),1,3.5,Debit,8.54815E+22,02/05/2019,GLOUCESTER CC
Gloucester City Council,23UE,Museum of Gloucester Catering,MU004,Hospitality & Refreshments,3104,24/04/2019,23/04/2019,TESCO STORES LTD 6498,GLOUCESTER,GBR,GL1 1SZ,REDACTED,556*********2362,5411,"GROCERY STORES, SUPERMARKETS",1.1,Pound Sterling (826),1,1.1,Debit,1.53778E+22,02/05/2019,GLOUCESTER CC
Gloucester City Council,23UE,Museum of Gloucester Catering,MU004,Hospitality & Refreshments,3104,29/04/2019,26/04/2019,ASDA SUPERSTORE,GLOUCESTER,GBR,GL1 1DS,REDACTED,556*********2362,5411,"GROCERY STORES, SUPERMARKETS",5.92,Pound Sterling (826),1,5.92,Debit,4.53778E+22,02/05/2019,GLOUCESTER CC
Gloucester City Council,23UE,Museum of Gloucester,MU002,General Supplies/Materials,3025,30/04/2019,29/04/2019,KNIGHTSHOPI,4.41493E+11,GBR,LL328AY,REDACTED,556*********2362,5331,VARIETY STORES,117.2,Pound Sterling (826),1,117.2,Debit,8.51301E+22,02/05/2019,GLOUCESTER CC
Gloucester City Council,23UE,Managing Director & Directors,MT001,Equipment and Furniture,3001,04/04/2019,03/04/2019,FARNELL,LEEDS,GBR,LS12 2QQ,REDACTED,556*********1418,5065,ELECTRICAL PARTS AND EQUIPMENT,712.06,Pound Sterling (826),1,712.06,Debit,6.54252E+22,02/05/2019,GLOUCESTER CC
Gloucester City Council,23UE,Managing Director & Directors,MT001,Equipment and Furniture,3001,15/04/2019,11/04/2019,WWW.FINDMYSUPPLIES.CO.,SHEFFIELD,,S9 1XU,REDACTED,556*********1418,5111,"STATIONERY,OFFICE SUPPLIES,PRINTING AND WRITING PAPER",6.41,Pound Sterling (826),1,6.41,Debit,5.5542E+22,02/05/2019,GLOUCESTER CC
Gloucester City Council,23UE,Managing Director & Directors,MT001,Equipment and Furniture,3001,15/04/2019,12/04/2019,CARRIER BAG SHOP,2030029960,,N18 3HT,REDACTED,556*********1418,7399,BUSINESS SERVICES NOT ELSEWHERE CLASSIFIED,53.16,Pound Sterling (826),1,53.16,Debit,5.55044E+22,02/05/2019,GLOUCESTER CC
Gloucester City Council,23UE,Countryside Unit,EP003,Vehicle Repairs and Maintenance,2103,18/04/2019,17/04/2019,L & S ENGINEERS LT,WALSALL,,WS8 7HB,REDACTED,556*********6734,5046,"COMMERCIAL EQUIPMENT, NOT ELSEWHERE CLASSIFIED",15.24,Pound Sterling (826),1,15.24,Debit,5.55044E+22,02/05/2019,GLOUCESTER CC
Gloucester City Council,23UE,ourist Information Centre,TI002,Equipment and Furniture,3001,04/04/2019,03/04/2019,TIMPSON LTD,GLOUCESTER,,GL11XH,REDACTED,556*********1155,7251,"SHOE REPAIR SHOPS, SHOE SHINE PARLORS & HAT CLEANING SHOPS",85,Pound Sterling (826),1,85,Debit,8.54815E+22,02/05/2019,GLOUCESTER CC
Gloucester City Council,23UE,Gloucester Guildhall,GH001,Equipment and Furniture,3001,11/04/2019,10/04/2019,AMZN MKTP UK*MZ2CE7VL4,AMAZON.CO.UK,LUX,,REDACTED,556*********1155,5942,BOOK STORES,22.75,Pound Sterling (826),1,22.75,Debit,8.53969E+22,02/05/2019,GLOUCESTER CC
Gloucester City Council,23UE,Guildhall Bar and Caf�,GH005,Catering Provisions,3103,18/04/2019,17/04/2019,ICELAND,GLOUCESTER,GBR,GL1 1SA,REDACTED,556*********1155,5411,"GROCERY STORES, SUPERMARKETS",10,Pound Sterling (826),1,10,Debit,2.53778E+22,02/05/2019,GLOUCESTER CC
Gloucester City Council,23UE,Guildhall Bar and Caf�,GH005,Catering Provisions,3103,22/04/2019,20/04/2019,POUNDLAND LTD 1167,GLOUCESTER,,GL11XH,REDACTED,556*********1155,5310,DISCOUNT STORES,6,Pound Sterling (826),1,6,Debit,8.54815E+22,02/05/2019,GLOUCESTER CC
Gloucester City Council,23UE,Guildhall Events,GH002,Catering Provisions,3103,22/04/2019,20/04/2019,ASDA GROCERIES ONLINE,INTERNET,GBR,LS11 5AD,REDACTED,556*********1155,5411,"GROCERY STORES, SUPERMARKETS",68.87,Pound Sterling (826),1,68.87,Debit,8.53778E+22,02/05/2019,GLOUCESTER CC
Gloucester City Council,23UE,Guildhall Bar and Caf�,GH005,Catering Provisions,3103,22/04/2019,20/04/2019,ASDA SUPERSTORE,GLOUCESTER,GBR,GL1 1DS,REDACTED,556*********1155,5411,"GROCERY STORES, SUPERMARKETS",6.69,Pound Sterling (826),1,6.69,Debit,8.53778E+22,02/05/2019,GLOUCESTER CC
Gloucester City Council,23UE,Gloucester Guildhall,GH001,Equipment and Furniture,3001,25/04/2019,24/04/2019,B & Q 1179,GLOUCESTER,,GL12SG,REDACTED,556*********1155,5211,LUMBER AND BUILDING MATERIALS STORES,162.75,Pound Sterling (826),1,162.75,Debit,8.54815E+22,02/05/2019,GLOUCESTER CC
Gloucester City Council,23UE,Guildhall Bar and Caf�,GH005,Catering Provisions,3103,01/05/2019,30/04/2019,SAINSBURYS SACAT 0771,GLOUCESTER,GBR,GL1 2AG,REDACTED,556*********1155,5411,"GROCERY STORES, SUPERMARKETS",5.6,Pound Sterling (826),1,5.6,Debit,2.54252E+22,02/05/2019,GLOUCESTER CC
Gloucester City Council,23UE,Gloucester Guildhall,GH001,Mileage and Travel Allowances,2401,01/05/2019,30/04/2019,TRAVELODGE GB0000,THAME,,OX9 3AT,REDACTED,556*********1155,3615,TRAVELODGE,98.25,Pound Sterling (826),1,98.25,Debit,5.55044E+22,02/05/2019,GLOUCESTER CC
Gloucester City Council,23UE,Guildhall Bar and Caf�,GH005,Catering Provisions,3103,01/05/2019,30/04/2019,ASDA SUPERSTORE,GLOUCESTER,GBR,GL1 1DS,REDACTED,556*********1155,5411,"GROCERY STORES, SUPERMARKETS",18.79,Pound Sterling (826),1,18.79,Debit,4.53778E+22,02/05/2019,GLOUCESTER CC
Gloucester City Council,23UE,The Arbor,CC001,Equipment and Furniture,3001,01/05/2019,30/04/2019,BOOKER LIMITED GLOUCES,GLOUCESTER,GBR,GL4 3RT,REDACTED,556*********1155,5811,CATERERS,69.11,Pound Sterling (826),1,69.11,Debit,5.51842E+22,02/05/2019,GLOUCESTER CC
Gloucester City Council,23UE,Guildhall Bar and Caf�,GH005,Catering Provisions,3103,01/05/2019,30/04/2019,W M MORRISON STORE,575 GLOUCESTE,,GL1 4BD,REDACTED,556*********1155,5411,"GROCERY STORES, SUPERMARKETS",4.5,Pound Sterling (826),1,4.5,Debit,8.54815E+22,02/05/2019,GLOUCESTER CC
Gloucester City Council,23UE,Museum of Gloucester,MU002,Events,3070,04/04/2019,03/04/2019,AMZNMktplace,amazon.co.uk,GBR,EC2A 2FA,REDACTED,556*********8997,5999,MISCELLANEOUS AND RETAIL STORES,31.3,Pound Sterling (826),1,31.3,Debit,5.52047E+22,02/05/2019,GLOUCESTER CC
Gloucester City Council,23UE,Shopmobility,SM001,Equipment and Furniture,3001,05/04/2019,04/04/2019,AMZN Mktp UK*MZ6OK1EO4,800-279-6620,LUX,L2338,REDACTED,556*********8997,5942,BOOK STORES,5.99,Pound Sterling (826),1,5.99,Debit,5.52047E+22,02/05/2019,GLOUCESTER CC
Gloucester City Council,23UE,Gloucester Life Museum,MU005,Archiving,3402,05/04/2019,04/04/2019,AMZNMKTPLACE AMAZON.CO,AMAZON.CO.UK,GBR,,REDACTED,556*********8997,5999,MISCELLANEOUS AND RETAIL STORES,599.96,Pound Sterling (826),1,599.96,Debit,8.53892E+22,02/05/2019,GLOUCESTER CC
Gloucester City Council,23UE,Gloucester Guildhall,GH001,Hospitality & Refreshments,3104,11/04/2019,09/04/2019,PREMIER INN 44537895,GLOUCESTER,,GL1 5SF,REDACTED,556*********8997,3811,PREMIER INN,197,Pound Sterling (826),1,197,Debit,5.5542E+22,02/05/2019,GLOUCESTER CC
Gloucester City Council,23UE,Gloucester Guildhall,GH001,Hospitality & Refreshments,3104,11/04/2019,09/04/2019,PREMIER INN 44537895,GLOUCESTER,,GL1 5SF,REDACTED,556*********8997,3811,PREMIER INN,85.5,Pound Sterling (826),1,85.5,Debit,5.5542E+22,02/05/2019,GLOUCESTER CC
Gloucester City Council,23UE,Museum of Gloucester,MU002,General Supplies/Materials,3025,12/04/2019,10/04/2019,PAYPAL *SPEEDY HEN,35314369001,GBR,TW91EH,REDACTED,556*********8997,5942,BOOK STORES,14.49,Pound Sterling (826),1,14.49,Debit,8.51301E+22,02/05/2019,GLOUCESTER CC
Gloucester City Council,23UE,Events,GH008,Events,3070,15/04/2019,11/04/2019,TICKETWEB T4,0333 321 9990,,N1 9HF,REDACTED,556*********8997,7922,"THEATRICAL PRODUCERS (EXCEPT MOTION PICTURES), TICKET AGENCIES",222,Pound Sterling (826),1,222,Debit,8.54815E+22,02/05/2019,GLOUCESTER CC
Gloucester City Council,23UE,Blackfriars ,GH010,General Supplies/Materials,3025,15/04/2019,12/04/2019,AMZN Mktp UK*MZ65W35O4,800-279-6620,LUX,L2338,REDACTED,556*********8997,5942,BOOK STORES,23.49,Pound Sterling (826),1,23.49,Debit,5.52047E+22,02/05/2019,GLOUCESTER CC
Gloucester City Council,23UE,Blackfriars ,GH010,Advertising & Publicity,3404,15/04/2019,12/04/2019,WWW.INSTANTPRINT.C,01709 382202,,S63 5DR,REDACTED,556*********8997,7338,QUICK-COPY AND REPRODUCTION SERVICES,25.99,Pound Sterling (826),1,25.99,Debit,8.54815E+22,02/05/2019,GLOUCESTER CC
Gloucester City Council,23UE,Museum of Gloucester,MU002,Events,3070,18/04/2019,17/04/2019,AMZNMktplace,amazon.co.uk,GBR,EC2A 2FA,REDACTED,556*********8997,5999,MISCELLANEOUS AND RETAIL STORES,8.99,Pound Sterling (826),1,8.99,Debit,5.52047E+22,02/05/2019,GLOUCESTER CC
Gloucester City Council,23UE,Guildhall Events,GH002,Events,3070,18/04/2019,18/04/2019,WWW.ROOMSBOOKED.COM,INTERNET,GBR,GL50 4BA,REDACTED,556*********8997,7011,"LODGING, HOTELS, MOTELS, RESORTS",403.2,Pound Sterling (826),1,403.2,Debit,4.54252E+22,02/05/2019,GLOUCESTER CC
Gloucester City Council,23UE,Museum of Gloucester,MU002,Events,3070,19/04/2019,18/04/2019,FACEBK *YU6WFNSKW2,fb.me/ads,IRL,UNKNOWN,REDACTED,556*********8997,7311,ADVERTISING SERVICES,82.65,Pound Sterling (826),1,82.65,Debit,5.52047E+22,02/05/2019,GLOUCESTER CC
Gloucester City Council,23UE,Guildhall Events,GH002,Advertising & Publicity,3404,19/04/2019,18/04/2019,MAILCHIMP *MONTHLY,MAILCHIMP.COM,GA,30308,REDACTED,556*********8997,5968,CONTINUITY/SUBSCRIPTION MERCHANTS,23.2,Pound Sterling (826),1,23.2,Debit,5.54254E+22,02/05/2019,GLOUCESTER CC
Gloucester City Council,23UE,Guildhall Events,GH002,Advertising & Publicity,3404,19/04/2019,18/04/2019,FACEBK *6T6KBLW9X2,fb.me/ads,IRL,UNKNOWN,REDACTED,556*********8997,7311,ADVERTISING SERVICES,79.02,Pound Sterling (826),1,79.02,Debit,5.52047E+22,02/05/2019,GLOUCESTER CC
Gloucester City Council,23UE,Blackfriars ,GH010,Building Repairs and Maintenance,1001,24/04/2019,23/04/2019,PAYPAL *ANDYANDSUEB,35314369001,GBR,TW91EH,REDACTED,556*********8997,5942,BOOK STORES,75.98,Pound Sterling (826),1,75.98,Debit,8.51301E+22,02/05/2019,GLOUCESTER CC
Gloucester City Council,23UE,Gloucester Guildhall,GH001,General Supplies/Materials,3025,25/04/2019,24/04/2019,WWW.RESINCOAT.CO.UK,INTERNET,GBR,WF9 5JB,REDACTED,556*********8997,5198,"PAINTS,VARNISHES AND SUPPLIES",134.98,Pound Sterling (826),1,134.98,Debit,5.27248E+21,02/05/2019,GLOUCESTER CC
Gloucester City Council,23UE,Events,GH008,Events,3070,29/04/2019,26/04/2019,PREMIER INN44521615,BRIGHTON CITY,,BN1 1RE,REDACTED,556*********8997,3811,PREMIER INN,461.5,Pound Sterling (826),1,461.5,Debit,5.5542E+22,02/05/2019,GLOUCESTER CC
Gloucester City Council,23UE,Docks Complex - Services,AM006,Hospitality & Refreshments,3104,05/04/2019,04/04/2019,SAINSBURYS 2221,GLOUCESTER,GBR,GL2 5SA,REDACTED,556*********6128,5411,"GROCERY STORES, SUPERMARKETS",13.5,Pound Sterling (826),1,13.5,Debit,3.54252E+22,02/05/2019,GLOUCESTER CC
Gloucester City Council,23UE,Docks Complex - Services,AM006,Building Repairs and Maintenance,1001,05/04/2019,04/04/2019,B & Q 1179,GLOUCESTER,,GL12SG,REDACTED,556*********6128,5211,LUMBER AND BUILDING MATERIALS STORES,30,Pound Sterling (826),1,30,Debit,8.54815E+22,02/05/2019,GLOUCESTER CC
Gloucester City Council,23UE,Docks Complex - Services,AM006,Building Repairs and Maintenance,1001,25/04/2019,24/04/2019,TIMPSON LTD,GLOUCESTER,,GL11XH,REDACTED,556*********6128,7251,"SHOE REPAIR SHOPS, SHOE SHINE PARLORS & HAT CLEANING SHOPS",10,Pound Sterling (826),1,10,Debit,8.54815E+22,02/05/2019,GLOUCESTER CC
Gloucester City Council,23UE,Docks Complex - Services,AM006,Building Repairs and Maintenance,1001,25/04/2019,24/04/2019,TIMPSON LTD,GLOUCESTER,,GL11XH,REDACTED,556*********6128,7251,"SHOE REPAIR SHOPS, SHOE SHINE PARLORS & HAT CLEANING SHOPS",12,Pound Sterling (826),1,12,Debit,8.54815E+22,02/05/2019,GLOUCESTER CC
Gloucester City Council,23UE,Development Management,PL003,External Training Course Fees,550,05/04/2019,04/04/2019,PAYPAL *RTPI,35314369001,GBR,EC3R8DL,REDACTED,556*********4234,8398,CHARITABLE AND SOCIAL SERVICE ORGANIZATIONS,450,Pound Sterling (826),1,450,Debit,8.51301E+22,02/05/2019,GLOUCESTER CC
Gloucester City Council,23UE,Development Management,PL003,External Training Course Fees,550,08/04/2019,05/04/2019,PAYPAL *RTPI,35314369001,GBR,EC3R8DL,REDACTED,556*********4234,8398,CHARITABLE AND SOCIAL SERVICE ORGANIZATIONS,90,Pound Sterling (826),1,90,Debit,8.51301E+22,02/05/2019,GLOUCESTER CC
Gloucester City Council,23UE,Development Management,PL003,Mileage and Travel Allowances,2401,08/04/2019,05/04/2019,TRAVELODGE GB0000,THAME,,OX9 3AT,REDACTED,556*********4234,3615,TRAVELODGE,303.75,Pound Sterling (826),1,303.75,Debit,5.55044E+22,02/05/2019,GLOUCESTER CC
Gloucester City Council,23UE,Gloucester Guildhall,GH001,Public Transport - Staff,2402,12/04/2019,11/04/2019,Trainline,London,GBR,1445,REDACTED,556*********4234,4112,PASSENGER RAILWAYS,75,Pound Sterling (826),1,75,Debit,8.51301E+22,02/05/2019,GLOUCESTER CC
Gloucester City Council,23UE,Business Support,BI004,Stationery,3201,18/04/2019,17/04/2019,A2B OFFICE SUPPLIES,LANCASHIRE,LND,BL9 8NT,REDACTED,556*********4234,5399,MISCELLANEOUS GENERAL MERCHANDISE STORES,117.21,Pound Sterling (826),1,117.21,Debit,8.53839E+22,02/05/2019,GLOUCESTER CC
Gloucester City Council,23UE,Council Streetcare Team,NE002,Public Transport - Staff,2402,26/04/2019,25/04/2019,Trainline,London,GBR,1445,REDACTED,556*********4234,4112,PASSENGER RAILWAYS,96,Pound Sterling (826),1,96,Debit,8.51301E+22,02/05/2019,GLOUCESTER CC
Gloucester City Council,23UE,Development Management,PL003,Public Transport - Staff,2402,26/04/2019,25/04/2019,Trainline,London,GBR,1445,REDACTED,556*********4234,4112,PASSENGER RAILWAYS,86.5,Pound Sterling (826),1,86.5,Debit,8.51301E+22,02/05/2019,GLOUCESTER CC
Gloucester City Council,23UE,Off Street Car Parks,PA001,Advertising & Publicity,3404,26/04/2019,25/04/2019,SIGNS EXPRESS (GLOUCES,GLOUCESTER,GBR,GL4 3SJ,REDACTED,556*********4234,7399,BUSINESS SERVICES NOT ELSEWHERE CLASSIFIED,168,Pound Sterling (826),1,168,Debit,5.27248E+21,02/05/2019,GLOUCESTER CC
Gloucester City Council,23UE,Business Support,BI004,Postage,3530,01/05/2019,30/04/2019,POST OFFICE COUNTER,GLOUCESTER,,GL1 1AD,REDACTED,556*********4234,9402,POSTAGE STAMPS,499,Pound Sterling (826),1,499,Debit,5.55044E+22,02/05/2019,GLOUCESTER CC
Gloucester City Council,23UE,Gloucester Guildhall,GH001,Public Transport - Staff,2402,02/05/2019,01/05/2019,Trainline,London,GBR,1445,REDACTED,556*********4234,4112,PASSENGER RAILWAYS,89.2,Pound Sterling (826),1,89.2,Debit,8.51301E+22,02/05/2019,GLOUCESTER CC
Gloucester City Council,23UE,Housing Services,HS001,Mileage and Travel Allowances,2401,02/05/2019,01/05/2019,Trainline,London,GBR,1445,REDACTED,556*********4234,4112,PASSENGER RAILWAYS,186.2,Pound Sterling (826),1,186.2,Debit,8.51301E+22,02/05/2019,GLOUCESTER CC
Gloucester City Council,23UE,Housing Services,HS001,B&B Payments,1303,03/04/2019,02/04/2019,TRAVELODGE GB0000,THAME,,OX9 3AT,REDACTED,556*********6959,3615,TRAVELODGE,133,Pound Sterling (826),1,133,Debit,5.55044E+22,02/05/2019,GLOUCESTER CC
Gloucester City Council,23UE,Housing Services,HS001,B&B Payments,1303,03/04/2019,02/04/2019,TRAVELODGE GB0000,THAME,,OX9 3AT,REDACTED,556*********6959,3615,TRAVELODGE,200,Pound Sterling (826),1,200,Debit,5.55044E+22,02/05/2019,GLOUCESTER CC
Gloucester City Council,23UE,Housing Services,HS001,B&B Payments,1303,03/04/2019,02/04/2019,TRAVELODGE GB0000,THAME,,OX9 3AT,REDACTED,556*********6959,3615,TRAVELODGE,182,Pound Sterling (826),1,182,Debit,5.55044E+22,02/05/2019,GLOUCESTER CC
Gloucester City Council,23UE,Housing Services,HS001,Professional Advice/Consultants Fees,3952,05/04/2019,04/04/2019,ECCTIS LTD,CHELTENHAM,GBR,GL50 2ED,REDACTED,556*********6959,8999,PROFESSIONAL SERVICES NOT ELSEWHERE CLASSIFIED,61.4,Pound Sterling (826),1,61.4,Debit,4.54252E+22,02/05/2019,GLOUCESTER CC
Gloucester City Council,23UE,Housing Services,HS001,B&B Payments,1303,05/04/2019,04/04/2019,TRAVELODGE GB0000,THAME,,OX9 3AT,REDACTED,556*********6959,3615,TRAVELODGE,195,Pound Sterling (826),1,195,Debit,5.55044E+22,02/05/2019,GLOUCESTER CC
Gloucester City Council,23UE,Housing Services,HS001,B&B Payments,1303,08/04/2019,05/04/2019,TRAVELODGE GB0000,THAME,,OX9 3AT,REDACTED,556*********6959,3615,TRAVELODGE,163,Pound Sterling (826),1,163,Debit,5.55044E+22,02/05/2019,GLOUCESTER CC
Gloucester City Council,23UE,Housing Services,HS001,B&B Payments,1303,08/04/2019,05/04/2019,TRAVELODGE GB0000,THAME,,OX9 3AT,REDACTED,556*********6959,3615,TRAVELODGE,163,Pound Sterling (826),1,163,Debit,5.55044E+22,02/05/2019,GLOUCESTER CC
Gloucester City Council,23UE,Housing Services,HS001,B&B Payments,1303,08/04/2019,05/04/2019,TRAVELODGE GB0000,THAME,,OX9 3AT,REDACTED,556*********6959,3615,TRAVELODGE,212,Pound Sterling (826),1,212,Debit,5.55044E+22,02/05/2019,GLOUCESTER CC
Gloucester City Council,23UE,Housing Services,HS001,B&B Payments,1303,09/04/2019,08/04/2019,TRAVELODGE GB0000,THAME,,OX9 3AT,REDACTED,556*********6959,3615,TRAVELODGE,236,Pound Sterling (826),1,236,Debit,5.55044E+22,02/05/2019,GLOUCESTER CC
Gloucester City Council,23UE,Housing Services,HS001,B&B Payments,1303,09/04/2019,08/04/2019,TRAVELODGE GB0000,THAME,,OX9 3AT,REDACTED,556*********6959,3615,TRAVELODGE,266,Pound Sterling (826),1,266,Debit,5.55044E+22,02/05/2019,GLOUCESTER CC
Gloucester City Council,23UE,Housing Services,HS001,B&B Payments,1303,09/04/2019,08/04/2019,TRAVELODGE GB0000,THAME,,OX9 3AT,REDACTED,556*********6959,3615,TRAVELODGE,173,Pound Sterling (826),1,173,Debit,5.55044E+22,02/05/2019,GLOUCESTER CC
Gloucester City Council,23UE,Housing Services,HS001,B&B Payments,1303,09/04/2019,08/04/2019,TRAVELODGE GB0000,THAME,,OX9 3AT,REDACTED,556*********6959,3615,TRAVELODGE,173,Pound Sterling (826),1,173,Debit,5.55044E+22,02/05/2019,GLOUCESTER CC
Gloucester City Council,23UE,Housing Services,HS001,Hospitality & Refreshments,3104,11/04/2019,10/04/2019,WWW.DOMINOS.CO.UK,01908 580000,,MK100AB,REDACTED,556*********6959,5812,"EATING PLACES, RESTAURANTS",55.97,Pound Sterling (826),1,55.97,Debit,8.54815E+22,02/05/2019,GLOUCESTER CC
Gloucester City Council,23UE,Housing Services,HS001,B&B Payments,1303,12/04/2019,11/04/2019,TRAVELODGE GB0000,THAME,,OX9 3AT,REDACTED,556*********6959,3615,TRAVELODGE,341,Pound Sterling (826),1,341,Debit,5.55044E+22,02/05/2019,GLOUCESTER CC
Gloucester City Council,23UE,Housing Services,HS001,B&B Payments,1303,12/04/2019,11/04/2019,TRAVELODGE GB0000,THAME,,OX9 3AT,REDACTED,556*********6959,3615,TRAVELODGE,196,Pound Sterling (826),1,196,Debit,5.55044E+22,02/05/2019,GLOUCESTER CC
Gloucester City Council,23UE,Housing Services,HS001,B&B Payments,1303,12/04/2019,09/04/2019,TRAVELODGE GB0809,GLOUCESTER,,GL1 5SF,REDACTED,556*********6959,3615,TRAVELODGE,81.5,Pound Sterling (826),1,81.5,Debit,5.55044E+22,02/05/2019,GLOUCESTER CC
Gloucester City Council,23UE,Housing Services,HS001,B&B Payments,1303,12/04/2019,11/04/2019,TRAVELODGE GB0000,THAME,,OX9 3AT,REDACTED,556*********6959,3615,TRAVELODGE,-145,Pound Sterling (826),1,-145,Credit,5.55044E+22,02/05/2019,GLOUCESTER CC
Gloucester City Council,23UE,Housing Services,HS001,B&B Payments,1303,15/04/2019,12/04/2019,TRAVELODGE GB0000,THAME,,OX9 3AT,REDACTED,556*********6959,3615,TRAVELODGE,138,Pound Sterling (826),1,138,Debit,5.55044E+22,02/05/2019,GLOUCESTER CC
Gloucester City Council,23UE,Housing Services,HS001,B&B Payments,1303,16/04/2019,15/04/2019,TRAVELODGE GB0000,THAME,,OX9 3AT,REDACTED,556*********6959,3615,TRAVELODGE,141,Pound Sterling (826),1,141,Debit,5.55044E+22,02/05/2019,GLOUCESTER CC
Gloucester City Council,23UE,Housing Services,HS001,B&B Payments,1303,16/04/2019,15/04/2019,TRAVELODGE GB0000,THAME,,OX9 3AT,REDACTED,556*********6959,3615,TRAVELODGE,49,Pound Sterling (826),1,49,Debit,5.55044E+22,02/05/2019,GLOUCESTER CC
Gloucester City Council,23UE,Housing Services,HS001,B&B Payments,1303,17/04/2019,16/04/2019,TRAVELODGE GB0000,THAME,,OX9 3AT,REDACTED,556*********6959,3615,TRAVELODGE,412,Pound Sterling (826),1,412,Debit,5.55044E+22,02/05/2019,GLOUCESTER CC
Gloucester City Council,23UE,Housing Services,HS001,Equipment and Furniture,3001,24/04/2019,24/04/2019,Amazon.co.uk*MZ28R09O4,AMAZON.CO.UK,LUX,L2338,REDACTED,556*********6959,5969,ALL OTHER DIRECT MARKETERS,15,Pound Sterling (826),1,15,Debit,5.52047E+22,02/05/2019,GLOUCESTER CC
Gloucester City Council,23UE,Housing Services,HS001,B&B Payments,1303,24/04/2019,23/04/2019,TRAVELODGE GB0000,THAME,,OX9 3AT,REDACTED,556*********6959,3615,TRAVELODGE,103,Pound Sterling (826),1,103,Debit,5.55044E+22,02/05/2019,GLOUCESTER CC
Gloucester City Council,23UE,Housing Services,HS001,B&B Payments,1303,24/04/2019,23/04/2019,TRAVELODGE GB0000,THAME,,OX9 3AT,REDACTED,556*********6959,3615,TRAVELODGE,-62,Pound Sterling (826),1,-62,Credit,5.55044E+22,02/05/2019,GLOUCESTER CC
Gloucester City Council,23UE,Housing Services,HS001,B&B Payments,1303,25/04/2019,24/04/2019,TRAVELODGE GB0000,THAME,,OX9 3AT,REDACTED,556*********6959,3615,TRAVELODGE,54,Pound Sterling (826),1,54,Debit,5.55044E+22,02/05/2019,GLOUCESTER CC
Gloucester City Council,23UE,Housing Services,HS001,B&B Payments,1303,25/04/2019,24/04/2019,TRAVELODGE GB0000,THAME,,OX9 3AT,REDACTED,556*********6959,3615,TRAVELODGE,103,Pound Sterling (826),1,103,Debit,5.55044E+22,02/05/2019,GLOUCESTER CC
Gloucester City Council,23UE,Housing Services,HS001,B&B Payments,1303,25/04/2019,24/04/2019,TRAVELODGE GB0000,THAME,,OX9 3AT,REDACTED,556*********6959,3615,TRAVELODGE,270,Pound Sterling (826),1,270,Debit,5.55044E+22,02/05/2019,GLOUCESTER CC
Gloucester City Council,23UE,Housing Services,HS001,B&B Payments,1303,25/04/2019,24/04/2019,TRAVELODGE GB0000,THAME,,OX9 3AT,REDACTED,556*********6959,3615,TRAVELODGE,270,Pound Sterling (826),1,270,Debit,5.55044E+22,02/05/2019,GLOUCESTER CC
Gloucester City Council,23UE,Housing Services,HS001,B&B Payments,1303,25/04/2019,24/04/2019,TRAVELODGE GB0000,THAME,,OX9 3AT,REDACTED,556*********6959,3615,TRAVELODGE,103,Pound Sterling (826),1,103,Debit,5.55044E+22,02/05/2019,GLOUCESTER CC
Gloucester City Council,23UE,Housing Services,HS001,B&B Payments,1303,25/04/2019,24/04/2019,TRAVELODGE GB0000,THAME,,OX9 3AT,REDACTED,556*********6959,3615,TRAVELODGE,103,Pound Sterling (826),1,103,Debit,5.55044E+22,02/05/2019,GLOUCESTER CC
Gloucester City Council,23UE,Housing Services,HS001,B&B Payments,1303,26/04/2019,25/04/2019,TRAVELODGE GB0000,THAME,,OX9 3AT,REDACTED,556*********6959,3615,TRAVELODGE,265,Pound Sterling (826),1,265,Debit,5.55044E+22,02/05/2019,GLOUCESTER CC
Gloucester City Council,23UE,Housing Services,HS001,B&B Payments,1303,26/04/2019,25/04/2019,TRAVELODGE GB0000,THAME,,OX9 3AT,REDACTED,556*********6959,3615,TRAVELODGE,265,Pound Sterling (826),1,265,Debit,5.55044E+22,02/05/2019,GLOUCESTER CC
Gloucester City Council,23UE,Housing Services,HS001,B&B Payments,1303,29/04/2019,26/04/2019,TRAVELODGE GB0000,THAME,,OX9 3AT,REDACTED,556*********6959,3615,TRAVELODGE,216,Pound Sterling (826),1,216,Debit,5.55044E+22,02/05/2019,GLOUCESTER CC
Gloucester City Council,23UE,Housing Services,HS001,B&B Payments,1303,29/04/2019,26/04/2019,TRAVELODGE GB0000,THAME,,OX9 3AT,REDACTED,556*********6959,3615,TRAVELODGE,167,Pound Sterling (826),1,167,Debit,5.55044E+22,02/05/2019,GLOUCESTER CC
Gloucester City Council,23UE,Housing Services,HS001,B&B Payments,1303,29/04/2019,26/04/2019,TRAVELODGE GB0000,THAME,,OX9 3AT,REDACTED,556*********6959,3615,TRAVELODGE,167,Pound Sterling (826),1,167,Debit,5.55044E+22,02/05/2019,GLOUCESTER CC
Gloucester City Council,23UE,Housing Services,HS001,B&B Payments,1303,29/04/2019,26/04/2019,TRAVELODGE GB0000,THAME,,OX9 3AT,REDACTED,556*********6959,3615,TRAVELODGE,167,Pound Sterling (826),1,167,Debit,5.55044E+22,02/05/2019,GLOUCESTER CC
Gloucester City Council,23UE,Housing Services,HS001,B&B Payments,1303,29/04/2019,26/04/2019,TRAVELODGE GB0000,THAME,,OX9 3AT,REDACTED,556*********6959,3615,TRAVELODGE,167,Pound Sterling (826),1,167,Debit,5.55044E+22,02/05/2019,GLOUCESTER CC
Gloucester City Council,23UE,Housing Services,HS001,B&B Payments,1303,30/04/2019,29/04/2019,TRAVELODGE GB0000,THAME,,OX9 3AT,REDACTED,556*********6959,3615,TRAVELODGE,157,Pound Sterling (826),1,157,Debit,5.55044E+22,02/05/2019,GLOUCESTER CC
Gloucester City Council,23UE,Housing Services,HS001,B&B Payments,1303,30/04/2019,29/04/2019,TRAVELODGE GB0000,THAME,,OX9 3AT,REDACTED,556*********6959,3615,TRAVELODGE,157,Pound Sterling (826),1,157,Debit,5.55044E+22,02/05/2019,GLOUCESTER CC
Gloucester City Council,23UE,Housing Services,HS001,B&B Payments,1303,30/04/2019,29/04/2019,TRAVELODGE GB0000,THAME,,OX9 3AT,REDACTED,556*********6959,3615,TRAVELODGE,157,Pound Sterling (826),1,157,Debit,5.55044E+22,02/05/2019,GLOUCESTER CC
Gloucester City Council,23UE,Housing Services,HS001,B&B Payments,1303,30/04/2019,29/04/2019,TRAVELODGE GB0000,THAME,,OX9 3AT,REDACTED,556*********6959,3615,TRAVELODGE,157,Pound Sterling (826),1,157,Debit,5.55044E+22,02/05/2019,GLOUCESTER CC
Gloucester City Council,23UE,Housing Services,HS001,B&B Payments,1303,30/04/2019,29/04/2019,TRAVELODGE GB0000,THAME,,OX9 3AT,REDACTED,556*********6959,3615,TRAVELODGE,206,Pound Sterling (826),1,206,Debit,5.55044E+22,02/05/2019,GLOUCESTER CC
Gloucester City Council,23UE,Housing Services,HS001,B&B Payments,1303,30/04/2019,29/04/2019,TRAVELODGE GB0000,THAME,,OX9 3AT,REDACTED,556*********6959,3615,TRAVELODGE,157,Pound Sterling (826),1,157,Debit,5.55044E+22,02/05/2019,GLOUCESTER CC
Gloucester City Council,23UE,Housing Services,HS001,B&B Payments,1303,30/04/2019,29/04/2019,TRAVELODGE GB0000,THAME,,OX9 3AT,REDACTED,556*********6959,3615,TRAVELODGE,157,Pound Sterling (826),1,157,Debit,5.55044E+22,02/05/2019,GLOUCESTER CC
Gloucester City Council,23UE,Housing Services,HS001,B&B Payments,1303,01/05/2019,30/04/2019,TRAVELODGE GB0000,THAME,,OX9 3AT,REDACTED,556*********6959,3615,TRAVELODGE,143,Pound Sterling (826),1,143,Debit,5.55044E+22,02/05/2019,GLOUCESTER CC
Gloucester City Council,23UE,Housing Services,HS001,B&B Payments,1303,01/05/2019,30/04/2019,TRAVELODGE GB0000,THAME,,OX9 3AT,REDACTED,556*********6959,3615,TRAVELODGE,162,Pound Sterling (826),1,162,Debit,5.55044E+22,02/05/2019,GLOUCESTER CC
Gloucester City Council,23UE,Housing Services,HS001,B&B Payments,1303,01/05/2019,30/04/2019,TRAVELODGE GB0000,THAME,,OX9 3AT,REDACTED,556*********6959,3615,TRAVELODGE,162,Pound Sterling (826),1,162,Debit,5.55044E+22,02/05/2019,GLOUCESTER CC
Gloucester City Council,23UE,Housing Services,HS001,B&B Payments,1303,01/05/2019,30/04/2019,TRAVELODGE GB0000,THAME,,OX9 3AT,REDACTED,556*********6959,3615,TRAVELODGE,143,Pound Sterling (826),1,143,Debit,5.55044E+22,02/05/2019,GLOUCESTER CC
Gloucester City Council,23UE,Gloucester Guildhall,GH001,Professional Advice/Consultants Fees,3952,03/04/2019,02/04/2019,MICROSOFT *OFFICE 365,Reading,GBR,RG6 1WG,REDACTED,556*********8256,5816,DIGITAL GOODS - GAMES,79.99,Pound Sterling (826),1,79.99,Debit,1.52657E+22,02/05/2019,GLOUCESTER CC
Gloucester City Council,23UE,ICT Projects,XCICT,Hardware,9005,03/04/2019,02/04/2019,FARNELL,LEEDS,GBR,LS12 2QQ,REDACTED,556*********3063,5065,ELECTRICAL PARTS AND EQUIPMENT,450.82,Pound Sterling (826),1,450.82,Debit,2.54252E+22,02/05/2019,GLOUCESTER CC
Gloucester City Council,23UE,Business Transformation,BI006,"ICT Software, Licences & Support",3521,03/04/2019,02/04/2019,WWW.JA.NET,12358222311,,OX11 0SG,REDACTED,556*********3063,8699,MEMBERSHIP ORGANIZATIONS NOT ELSEWHERE CLASSIFIED,840,Pound Sterling (826),1,840,Debit,5.55044E+22,02/05/2019,GLOUCESTER CC
Gloucester City Council,23UE,Business Transformation,BI006,General Supplies/Materials,3025,04/04/2019,03/04/2019,AMZNMktplace,amazon.co.uk,GBR,EC2A 2FA,REDACTED,556*********3063,5999,MISCELLANEOUS AND RETAIL STORES,40,Pound Sterling (826),1,40,Debit,5.52047E+22,02/05/2019,GLOUCESTER CC
Gloucester City Council,23UE,Financial Services,FS004,Public Transport - Staff,2402,05/04/2019,04/04/2019,Trainline,London,GBR,1445,REDACTED,556*********3063,4112,PASSENGER RAILWAYS,97.75,Pound Sterling (826),1,97.75,Debit,8.51301E+22,02/05/2019,GLOUCESTER CC
Gloucester City Council,23UE,Business Transformation,BI006,"ICT Software, Licences & Support",3521,18/04/2019,17/04/2019,EASILY LTD,LONDON,GBR,E14 5LQ,REDACTED,556*********3063,4816,COMPUTER NETWORK/INFORMATION SERVICES,20,Pound Sterling (826),1,20,Debit,1.52763E+22,02/05/2019,GLOUCESTER CC
Gloucester City Council,23UE,Elections,DS004,Equipment and Furniture/European Elections,3001/C242,24/04/2019,23/04/2019,WWW.MILLMOLL.CO.UK,INTERNET,GBR,SE7 7SF,REDACTED,556*********3063,4225,"PUBLIC WAREHOUSING-FARM PROD,REFRIGERATE",3643.97,Pound Sterling (826),1,3643.97,Debit,5.27247E+21,02/05/2019,GLOUCESTER CC
Gloucester City Council,23UE,Civica Admin Charges,BI002,ICT New Hardware,3523,26/04/2019,25/04/2019,CHECKPRINT LTD,HINCKLEY,,LE103BP,REDACTED,556*********3063,7338,QUICK-COPY AND REPRODUCTION SERVICES,437.95,Pound Sterling (826),1,437.95,Debit,8.54815E+22,02/05/2019,GLOUCESTER CC
